Cogmind - Beta 10.2 @@@ ROGUE MODE // 2022.02.06 @ 10:29:20 Player: Burgers_Lettuce Result: Destroyed by Y-54 Guardian with Flak Gun Performance ------------- Evolutions (4) 2000 Regions Visited (7) 1400 Robots Destroyed (32) 160 Value Destroyed (928) 928 Prototype IDs (8) 160 Alien Tech Used (0) 0 Bonus (200) 200 TOTAL SCORE: 4848 Bonus ------- Entered Garrisons 200 Cogmind --------- Core Integrity 0/850 Matter 170/300 Energy 100/100 System Corruption 2% Temperature Cool (0) Movement Core (50) Location -6/Garrison Parts ------- > --- POWER (2) -------- (None) > --- PROPULSION (4) --- (None) > --- UTILITY (6) ------ Advanced Signal Interpreter Core Shielding > --- WEAPON (3) ------- (None) > --- INVENTORY (4) ---- Small Storage Unit Medium Storage Unit Improved Assault Rifle Scatter Rocket Array Peak State ------------ > --- POWER ------------ (None) > --- PROPULSION ------- Wheel Improved VTOL Module > --- UTILITY ---------- Heat Sink Advanced Signal Interpreter Core Shielding Core Shielding Core Shielding > --- WEAPON ----------- Scatter Rocket Array Datajack Improved Datajack > --- INVENTORY -------- Small Storage Unit Medium Storage Unit Improved Assault Rifle [Rating: 22] Favorites ----------- Power Improved Ion Engine Engine Improved Ion Engine Propulsion Wheel Treads Improved Treads Leg Carbon-fiber Leg Wheel Wheel Flight Unit Improved VTOL Module Utility Heat Sink Device Heat Sink Storage Small Storage Unit Processor Advanced Signal Interpreter Hackware Hacking Suite Protection Core Shielding Weapon Heavy Assault Rifle Energy Gun Particle Gun Ballistic Gun Heavy Assault Rifle Ballistic Cannon Light Cannon Launcher Scatter Rocket Array Special Weapon Plasma Cutter Special Melee Weapon Improved Datajack Build | -11 -10 -9 -8 -8 -8 -6 -6 ------- Run | Scr Mat Mat Mat Sto Rec Fac Gar Slots Evolved 8 | . . 2 2 . . 4 . Power 1 | . . . . . . 1 . Propulsion 2 | . . . . . . 2 . Utility 4 | . . 1 2 . . 1 . Weapon 1 | . . 1 . . . . . Parts Attached 69 | 6 11 10 25 10 4 1 2 Power 7 | 1 1 2 2 . . 1 . Engine 7 | 1 1 2 2 . . 1 . Core . | . . . . . . . . Reactor . | . . . . . . . . Propulsion 20 | 2 4 1 9 2 2 . . Treads 8 | 1 2 1 3 . 1 . . Leg 4 | . . . 4 . . . . Wheel 5 | 1 2 . 1 . 1 . . Hover . | . . . . . . . . Flight 3 | . . . 1 2 . . . Utility 18 | 1 . 2 8 5 . . 2 Device 6 | . . 1 4 1 . . . Storage 2 | 1 . . 1 . . . . Processor 1 | . . . . 1 . . . Hackware 1 | . . . 1 . . . . Protection 8 | . . 1 2 3 . . 2 Artifact . | . . . . . . . . Weapon 24 | 2 6 5 6 3 2 . . Energy Gun 11 | 1 4 3 2 1 . . . Energy Cannon . | . . . . . . . . Ballistic Gun 6 | 1 1 2 1 1 . . . Ballistic Cannon 1 | . 1 . . . . . . Launcher 1 | . . . . . 1 . . Special Weapon 3 | . . . 3 . . . . Impact Weapon . | . . . . . . . . Slashing Weapon . | . . . . . . . . Piercing Weapon . | . . . . . . . . Special Melee Weapon 2 | . . . . 1 1 . . Unidentified Prototypes 4 | . . . 1 2 1 . . Parts Lost 28 | . 1 . 18 3 2 . 4 Power 3 | . . . 2 1 . . . Propulsion 7 | . . . 5 . 1 . 1 Utility 6 | . . . 4 . . . 2 Weapon 12 | . 1 . 7 2 1 . 1 Highest Loss Streak 7 | . 1 . 7 3 2 . 3 Average Slot Usage (%) 76 | . 80 98 68 43 69 46 33 Engine 8 | . 13 11 8 2 . . . Treads 6 | . 12 11 2 . . . . Leg 1 | . . . 5 . . . . Wheel 6 | . 12 11 2 . 3 . . Flight 2 | . . . 3 8 9 6 3 Device 10 | . . 10 16 12 9 6 1 Storage 7 | . 14 11 5 . . . . Processor 1 | . . . . 3 9 6 6 Protection 9 | . . 10 6 2 27 20 19 Energy Gun 7 | . 13 11 6 1 . . . Ballistic Gun 6 | . 8 11 5 . . . . Ballistic Cannon 5 | . 5 11 . . . . . Special Weapon 1 | . . . 4 3 . . . Special Melee Weapon 1 | . . . . 7 12 6 2 Naked Turns . | . . . . . . . . Heaviest Build 32 | 11 14 28 32 6 6 5 5 Greatest Support 43 | 20 10 23 43 6 6 6 6 Greatest Overweight (x) 4 | 1 3 2 4 . . . 1 Average Overweight (x) . | . 1 1 . . . . . Largest Inventory Capacity 6 | 6 6 6 6 4 4 4 4 Average Capacity 5 | 5 6 6 5 4 4 4 4 Most Carried 6 | 4 5 6 6 4 4 4 4 Average Carried 4 | 2 4 5 4 3 3 4 4 Final Capacity 6 | 6 6 6 4 4 4 4 4 Final Carried 6 | 4 4 6 4 4 4 4 4 Class Distribution -------------------- 46% | Mutant 36% | Tank 10% | Scavenger-Tank 4% | Scavenger-Mutant Dominant Class ---------------- Mutant | -10/Materials Tank | -9/Materials Mutant | -8/Materials Mutant | -8/Storage Mutant | -8/Recycling Mutant | -6/Factory Mutant | -6/Garrison Resources | -11 -10 -9 -8 -8 -8 -6 -6 ----------- Run | Scr Mat Mat Mat Sto Rec Fac Gar Matter Collected 1033 | 197 106 340 292 98 . . . Remotely . | . . . . . . . . Salvage Created 968 | . 93 340 385 150 . . . Parts 57 | . 7 18 23 8 1 . . Haulers Intercepted . | . . . . . . . . Recyclers Shooed . | . . . . . . . . Parts Field Recycled . | . . . . . . . . Retrieved Matter . | . . . . . . . . Parts Self-Destructed . | . . . . . . . . Prevented . | . . . . . . . . Kills | -11 -10 -9 -8 -8 -8 -6 -6 ------- Run | Scr Mat Mat Mat Sto Rec Fac Gar Combat Hostiles Destroyed 32 | . 4 10 11 5 2 . . Guns 26 | . 3 8 10 5 . . . Cannons 4 | . 1 2 1 . . . . AOE 2 | . . . . . 2 . . Classes Destroyed 5 | . 2 1 1 . 1 . . Drone 2 | . . . . . 2 . . Swarmer 13 | . 3 3 4 3 . . . Grunt 10 | . 1 3 5 1 . . . Sentry 6 | . . 4 1 1 . . . Hunter 1 | . . . 1 . . . . Best Kill Streak 5 | . 3 5 5 5 2 . . Combat Bots Only 5 | . 3 5 5 5 2 . . Max Kills in Single Turn 2 | . 1 1 1 1 2 . . Gunslinging . | . . . . . . . . Exploded 2 | . . . . . 2 . . Melee . | . . . . . . . . Uniques/NPCs Destroyed . | . . . . . . . . Combat | -11 -10 -9 -8 -8 -8 -6 -6 -------- Run | Scr Mat Mat Mat Sto Rec Fac Gar Damage Taken 3725 | 1 222 317 1599 314 51 156 1065 Core 1442 | . . 49 402 130 8 79 774 Absorbed by Shields 270 | . . . 241 . . . 29 Core Remaining (%) 72 | 100 100 87 . . 1 . . Volleys Fired 104 | . 15 26 43 19 1 . . Largest 3 | . 2 3 3 2 1 . . Hottest 144 | . 85 123 144 85 50 . . Shots Fired 224 | . 30 74 97 22 1 . . Gun 168 | . 20 48 81 19 . . . Cannon 46 | . 10 26 10 . . . . Launcher 1 | . . . . . 1 . . Special 9 | . . . 6 3 . . . Kinetic 122 | . 15 52 55 . . . . Thermal 101 | . 15 22 42 22 . . . Explosive 1 | . . . . . 1 . . Electromagnetic . | . . . . . . . . Robot Hit Streak 12 | . 6 12 10 7 . . . Robot Miss Streak 11 | . 2 5 7 5 11 . . Penetration Max . | . . . . . . . . Secondary Targets 3 | . . . 3 . . . . Max Gunslinging Chain 1 | . . . 1 . . . . Shots Hit Robots 135 | . 18 44 58 15 . . . Core Hits 87 | . 5 25 44 7 4 . 2 Critical Hits . | . . . . . . . . Critical Kills . | . . . . . . . . Critical Parts Destroyed . | . . . . . . . . Melee Attacks 1 | . . . . 1 . . . Impact . | . . . . . . . . Slashing . | . . . . . . . . Piercing . | . . . . . . . . Sneak Attacks . | . . . . . . . . Combat Hostiles . | . . . . . . . . Follow-up Attacks . | . . . . . . . . Damage Inflicted 2121 | 3 209 556 721 460 168 . 4 Guns 1604 | . 121 397 626 460 . . . Cannons 318 | . 88 159 71 . . . . Explosions 168 | . . . . . 168 . . Melee . | . . . . . . . . Ramming 9 | 3 . . 2 . . . 4 Kinetic 810 | . 98 339 373 . . . . Thermal 1134 | . 111 217 346 460 . . . Explosive 168 | . . . . . 168 . . Electromagnetic . | . . . . . . . . Impact . | . . . . . . . . Slashing . | . . . . . . . . Piercing . | . . . . . . . . Highest Corruption 2 | . . . . . . . 2 Average Corruption 1 | . . . . . . . 1 Corruption Purged . | . . . . . . . . Overload Shots . | . . . . . . . . Overflow Damage 16 | . 7 . . . 9 . . Projectiles 7 | . 7 . . . . . . Explosions 9 | . . . . . 9 . . Melee . | . . . . . . . . Knockbacks 3 | . . 2 1 . . . . Impact . | . . . . . . . . Kinetic 3 | . . 2 1 . . . . Secondary . | . . . . . . . . Self-Inflicted Damage 58 | 1 . . 1 . 55 . 1 Shots 2 | . . . . . 2 . . Rammed 6 | 1 . . 3 . . . 2 Targets Rammed 6 | 1 . . 3 . . . 2 Kicked . | . . . . . . . . Crushed . | . . . . . . . . Highest Temperature 235 | . 210 235 130 18 . . . Average Temperature 63 | . 82 77 40 8 . . . Received Heat Transfer 1038 | . 30 90 699 135 . 57 27 Siege Activations . | . . . . . . . . Robots Corrupted . | . . . . . . . . Combat Hostiles . | . . . . . . . . Parts Fried . | . . . . . . . . Impact Corruptions . | . . . . . . . . Robots Melted . | . . . . . . . . Combat Hostiles . | . . . . . . . . Parts Melted 2 | . . . 2 . . . . Heat Transferred 2024 | . 321 390 647 666 . . . Parts Sabotaged . | . . . . . . . . Parts Stolen . | . . . . . . . . Parts Stripped . | . . . . . . . . Power Chain Reactions . | . . . . . . . . Missiles Intercepted . | . . . . . . . . Alert | -11 -10 -9 -8 -8 -8 -6 -6 ------- Run | Scr Mat Mat Mat Sto Rec Fac Gar Peak Influence 926 | . 140 194 345 353 173 926 676 Initial 822 | . . 59 75 76 136 822 556 Average 208 | . 54 93 217 282 159 844 625 Maximum Alert Level 3 | . . . 1 1 . 3 2 Low Security (%) 68 | 100 100 100 45 20 100 . . Level 1 21 | . . . 54 79 . . . Level 2 2 | . . . . . . . 100 Level 3 6 | . . . . . . 100 . Level 4 . | . . . . . . . . Level 5 . | . . . . . . . . High Security . | . . . . . . . . Max Security . | . . . . . . . . Squads Dispatched 8 | . 1 1 4 2 . . . Investigation 2 | . . 1 1 . . . . Extermination . | . . . . . . . . Reinforcement 4 | . 1 . 3 . . . . Assault 2 | . . . . 2 . . . Garrison . | . . . . . . . . Intercept . | . . . . . . . . Construction Impeded 1 | . . . 1 . . . . Haulers Reinforced . | . . . . . . . . Stealth | -11 -10 -9 -8 -8 -8 -6 -6 --------- Run | Scr Mat Mat Mat Sto Rec Fac Gar Distress Signals 10 | . . 3 6 1 . . . Communications Jammed . | . . . . . . . . Distress Signals . | . . . . . . . . Times Spotted 98 | . 8 16 30 22 4 7 11 Peak Tracking Total 13 | . 3 5 7 10 3 5 13 Tactical Retreats 14 | . 1 3 4 4 . 1 1 Traps | -11 -10 -9 -8 -8 -8 -6 -6 ------- Run | Scr Mat Mat Mat Sto Rec Fac Gar Traps Triggered 9 | . 7 1 . . . . 1 Indirectly . | . . . . . . . . Trap Hack Attempts . | . . . . . . . . Triggered . | . . . . . . . . Disarmed . | . . . . . . . . Reprogrammed . | . . . . . . . . Reused . | . . . . . . . . Traps Extracted . | . . . . . . . . Installed . | . . . . . . . . Triggered . | . . . . . . . . Machines | -11 -10 -9 -8 -8 -8 -6 -6 ---------- Run | Scr Mat Mat Mat Sto Rec Fac Gar Machines Disabled 4 | . 1 1 1 1 . . . Max in Single Turn 1 | . 1 1 1 1 . . . Machines Sabotaged . | . . . . . . . . Garrisons Compromised . | . . . . . . . . Overloaded Fab Kills . | . . . . . . . . Fab Network Shutdowns . | . . . . . . . . Hacking | -11 -10 -9 -8 -8 -8 -6 -6 --------- Run | Scr Mat Mat Mat Sto Rec Fac Gar Machines Accessed 21 | . 1 3 3 5 2 7 . Terminals 17 | . 1 3 3 4 2 4 . Fabricators . | . . . . . . . . Repair Stations . | . . . . . . . . Recycling Units 1 | . . . . . . 1 . Scanalyzers . | . . . . . . . . Garrison Access 3 | . . . . 1 . 2 . Total Hacks 50 | . 3 8 11 8 9 11 . Successful 27 | . 2 3 7 4 5 6 . Failed 23 | . 1 5 4 4 4 5 . Catastrophic 5 | . . 3 . 1 . 1 . Database Lockouts . | . . . . . . . . Manual 12 | . . 3 2 2 5 . . Terminals 46 | . 3 8 11 7 9 8 . Fabricators . | . . . . . . . . Repair Stations . | . . . . . . . . Recycling Units 1 | . . . . . . 1 . Scanalyzers . | . . . . . . . . Garrison Access 3 | . . . . 1 . 2 . Terminal Hacks 24 | . 2 3 6 4 5 4 . Prototype ID Bank 2 | . . 1 1 . . . . Open Door 3 | . . . . 3 . . . Branch Access Points 1 | . . . . . 1 . . Emergency Access Points 3 | . . 1 1 . 1 . . Alert Level 7 | . . 1 2 1 1 2 . Unreport Threat 2 | . 1 . . . . 1 . Locate Traps 3 | . 1 . 1 . . 1 . Dispatch Records 2 | . . . 1 . 1 . . Maintenance Status 1 | . . . . . 1 . . Fabricator Hacks . | . . . . . . . . Repair Station Hacks . | . . . . . . . . Recycling Unit Hacks 1 | . . . . . . 1 . Report Inventory 1 | . . . . . . 1 . Scanalyzer . | . . . . . . . . Garrison Access Hacks 1 | . . . . . . 1 . Unlock Access 1 | . . . . . . 1 . Unauthorized Hacks 1 | . . . 1 . . . . Terminals 1 | . . . 1 . . . . Botnet 1 | . . . 1 . . . . Fabricators . | . . . . . . . . Repair Stations . | . . . . . . . . Recycling Units . | . . . . . . . . Scanalyzers . | . . . . . . . . Garrison Access . | . . . . . . . . Data Cores Recovered . | . . . . . . . . Used . | . . . . . . . . Hacking Detections 19 | . 1 3 3 4 2 6 . Full Trace Events 1 | . . . 1 . . . . Feedback Events . | . . . . . . . . Feedback Blocked . | . . . . . . . . Robot Schematics Acquired . | . . . . . . . . Robots Built . | . . . . . . . . Matter . | . . . . . . . . Time . | . . . . . . . . Total Robot Build Rating . | . . . . . . . . Part Schematics Acquired . | . . . . . . . . Parts Built . | . . . . . . . . Matter . | . . . . . . . . Time . | . . . . . . . . Total Part Build Rating . | . . . . . . . . Parts Repaired . | . . . . . . . . Time . | . . . . . . . . Parts Recycled . | . . . . . . . . Recycled Matter . | . . . . . . . . Retrieved Matter . | . . . . . . . . Retrieved Components . | . . . . . . . . Parts Scanalyzed . | . . . . . . . . Part Schematics Acquired . | . . . . . . . . Parts Damaged . | . . . . . . . . Bothacking | -11 -10 -9 -8 -8 -8 -6 -6 ------------ Run | Scr Mat Mat Mat Sto Rec Fac Gar Used RIF Installer . | . . . . . . . . Robots Hacked 1 | . . . . 1 . . . Non-combat . | . . . . . . . . Combat 1 | . . . . 1 . . . Robot Hacks Applied 1 | . . . . 1 . . . parse_system 1 | . . . . 1 . . . Relay Couplers Released . | . . . . . . . . Robots Rewired . | . . . . . . . . Allies Hacked . | . . . . . . . . Hacks Repelled . | . . . . . . . . Allies | -11 -10 -9 -8 -8 -8 -6 -6 -------- Run | Scr Mat Mat Mat Sto Rec Fac Gar Total Allies 2 | . . . . 2 . . . Largest Group 2 | . . . . 2 . . . Highest-Rated Group 62 | . . . . 62 . . . Highest-Rated Ally 31 | . . . . 31 . . . Total Orders . | . . . . . . . . Ally Attacks 13 | . . . . 13 . . . Total Damage 162 | . . . . 162 . . . Kills . | . . . . . . . . Allies Corrupted . | . . . . . . . . Allies Melted . | . . . . . . . . Intel | -11 -10 -9 -8 -8 -8 -6 -6 ------- Run | Scr Mat Mat Mat Sto Rec Fac Gar Robot Analysis Total . | . . . . . . . . Derelict Logs Recovered . | . . . . . . . . Drone Launches . | . . . . . . . . Drone Recoveries . | . . . . . . . . Exploration | -11 -10 -9 -8 -8 -8 -6 -6 ------------- Run | Scr Mat Mat Mat Sto Rec Fac Gar Turns Passed 2460 | 49 215 966 624 250 117 167 72 Spaces Moved 2133 | 39 168 451 404 281 232 452 106 Core 69 | 2 7 . 28 . . . 32 Treads 11 | 2 . 5 4 . . . . Legs 68 | . . . 68 . . . . Wheels 737 | 35 161 446 95 . . . . Hover . | . . . . . . . . Flight 1248 | . . . 209 281 232 452 74 Fastest Speed 35 | 50 80 90 35 35 35 35 35 Average Speed 62 | 90 91 99 72 35 35 35 49 Slowest Speed 250 | 160 200 160 250 35 40 35 100 Overloaded Moves . | . . . . . . . . Propulsion Burnouts . | . . . . . . . . Robots Hopped 39 | . . . 20 8 2 8 1 Cave-ins Triggered . | . . . . . . . . Exploration Rate (%) 34 | 4 42 42 38 37 68 17 31 Regions Visited 7 Branch Regions 2 Pre-discovered Areas . | . . . . . . . . Known Exits Taken 3 | . . . . 1 1 1 . Unknown Exits Taken 4 | 1 1 1 1 . . . . Scrap Searched . | . . . . . . . . Spaces Dug . | . . . . . . . . Terrain Destroyed 44 | . . . . . 44 . . Melee . | . . . . . . . . Projectile . | . . . . . . . . AOE 44 | . . . . . 44 . . Terrain Rammed . | . . . . . . . . Walls Destroyed . | . . . . . . . . Machines Disabled . | . . . . . . . . Actions | -11 -10 -9 -8 -8 -8 -6 -6 --------- Run | Scr Mat Mat Mat Sto Rec Fac Gar Total 3014 | 49 195 910 627 397 260 452 124 Wait 687 | . 1 412 155 88 24 7 . Move 2061 | 39 167 450 371 268 227 435 104 Hop 27 | . . . 12 4 2 8 1 Pick Up 15 | 4 1 4 5 1 . . . Fast Attach 39 | 6 6 3 11 7 3 1 2 Attach 18 | . 2 1 11 3 1 . . Detach 11 | . . . 7 3 1 . . Swap 12 | . 3 6 3 . . . . Drop 22 | . . 8 6 3 1 1 3 Fire 104 | . 15 26 43 19 1 . . Melee 1 | . . . . 1 . . . Ram 3 | . . . 1 . . . 2 Kick 1 | . . . 1 . . . . Crush 1 | . . . 1 . . . . Escape Stasis 12 | . . . . . . . 12 Rewire . | . . . . . . . . Trap . | . . . . . . . . Miscellaneous . | . . . . . . . . Route ------- -11/Scrapyard -10/Materials -9/Materials -8/Materials -8/Storage -8/Recycling -6/Factory -6/Garrison (discovered 1 exit: [*Fac]) History --------- Turn | Location | Event 16 | -11/Scrapyard | Discovered new exit (range 16) 50 | -11/Scrapyard | Entered Materials 252 | -10/Materials | Discovered new exit (range 15) 265 | -10/Materials | Entered another Materials area 265 | -9/Materials | Evolved 2 slots: Utility x1, Weapon x1 600 | -9/Materials | Build established: Tank 1226 | -9/Materials | Discovered new exit (range 6) 1231 | -9/Materials | Entered another Materials area 1231 | -8/Materials | Evolved 2 slots: Utility x2 1587 | -8/Materials | Lost 6 parts (1p1n1u3w) 1619 | -8/Materials | Core integrity fell below 50% 1675 | -8/Materials | Lost 7 parts (1p3n2u1w) 1852 | -8/Materials | Discovered new exit (range 9) 1855 | -8/Materials | Entered Storage 1889 | -8/Storage | Build established: Mutant 1926 | -8/Storage | Core integrity fell below 20% 1964 | -8/Storage | Lost 3 parts (1p2w) 2003 | -8/Storage | Met a pair of Derelict thieves 2097 | -8/Storage | Found Prototype Launcher 2104 | -8/Storage | Used back door to open Recycling access 2104 | -8/Storage | Discovered new exit (range 3) 2104 | -8/Storage | Identified exit to Recycling 2105 | -8/Storage | Entered Recycling 2161 | -8/Recycling | Spotter reported a threat 2161 | -8/Recycling | Spotter reported a threat 2162 | -8/Recycling | Identified Scatter Rocket Array 2168 | -8/Recycling | Spotter reported a threat 2197 | -8/Recycling | Spotter reported a threat 2198 | -8/Recycling | Spotter reported a threat 2216 | -8/Recycling | Discovered new exit (range 14) 2222 | -8/Recycling | Identified exit to Factory 2222 | -8/Recycling | Entered Factory 2222 | -6/Factory | Evolved 4 slots: Power x1, Propulsion x2, Utility x1 2389 | -6/Factory | Identified exit to Garrison 2389 | -6/Factory | Entered Garrison 2396 | -6/Garrison | Triggered checkpoint 2410 | -6/Garrison | Triggered checkpoint 2435 | -6/Garrison | Core integrity fell below 50% 2455 | -6/Garrison | Core integrity fell below 20% 2457 | -6/Garrison | Lost 3 parts (1n1u1w) 2457 | -6/Garrison | Discovered new exit (range 15) 2461 | -6/Garrison | Destroyed by Y-54 Guardian with Flak Gun Last Messages --------------- 02419_ Field strength at 64. 02420_ Field strength at 59. 02421_ Field strength at 50. 02422_ Field strength at 41. 02423_ Field strength at 36. 02424_ Field strength at 24. 02425_ Field strength at 19. 02426_ Imp. VTOL Module destroyed. 02426_ Field strength at 5. 02427_ Stasis field depleted. 02428_ Slammed into S-27 Virus. 02429_ Acquired Imp. Core Shielding. 02433_ Dropped Core Shielding. 02434_ Slammed into S-27 Virus. 02436_ Slug penetrates Wall. 02455_ S-27 Virus suffers critical hit. 02455_ S-27 Virus destroyed. 02456_ Dropped Imp. Core Shielding. 02457_ EXIT=FOUND 02461_ Imp. Core Shielding destroyed. Map ----- +----------------------------------------------------+ | | | | | | | | | | | | | | | | | ?????????????????????????????????????????????????? | | ?????????????????????????????????????????????????? | | ?????????????????????????????????????????????????? | | ?????????????????????????????????????????????????? | | ?????????????????????????????????????????????????? | | ?????????????????????????????????????????????????? | | ?????????????????????????????????????????????????? | | ?????????????????????????????????????????????????? | | ?????????????????????????#####???????????????????? | | ????????????????????????# ???????????????????? | | ????????????????????????#